Cogmind - Beta 13 @@@ ROGUE MODE // 2024.05.27 @ 12:43:56 Player: Bace Troncons Result: Destroyed by 91-VDV(R) with Subdweller Beam Cannon Performance ------------- Evolutions (0) 0 Regions Visited (2) 400 Robots Destroyed (19) 95 Value Destroyed (489) 489 Prototype IDs (12) 240 Alien Tech Used (0) 0 Bonus (0) 0 TOTAL SCORE: 1224 Bonus ------- None Cogmind --------- Core Integrity 0/250 Matter 260/300 Energy 100/100 System Corruption 0% Temperature Cool (9) Movement Walking (130) Location -10/Subcaves Parts ------- > --- POWER (1) -------- (None) > --- PROPULSION (2) --- Cargo Legs > --- UTILITY (2+2) ---- Small Storage Unit Terrain Scanner > --- WEAPON (2) ------- Light Assault Rifle > --- INVENTORY (8) ---- Ion Engine Light Treads Light Treads Light Treads Light Treads Makeshift Light Armor Plating Subdweller Shrapnel Launcher Peak State ------------ > --- POWER ------------ Light Nuclear Core > --- PROPULSION ------- Cargo Legs > --- UTILITY ---------- Small Storage Unit Terrain Scanner > --- WEAPON ----------- Subdweller Machine Gun Battle Cannon > --- INVENTORY -------- Ion Engine Light Treads Light Treads Light Treads Light Treads Makeshift Light Armor Plating Light Assault Rifle Subdweller Shrapnel Launcher [Rating: 26] Favorites ----------- Power Light Nuclear Core Engine Light Ion Engine Power Core Light Nuclear Core Propulsion Light Treads Treads Light Treads Leg Cargo Legs Utility Small Storage Unit Device Terrain Scanner Storage Small Storage Unit Weapon Light Assault Rifle Energy Gun EM Pulse Gun Ballistic Gun Light Assault Rifle Ballistic Cannon Battle Cannon Launcher Grenade Launcher Build | -11 -10 -10 ------- Run | Yrd Mat Sub Slots Evolved . | . . . Power . | . . . Propulsion . | . . . Utility . | . . . Weapon . | . . . Parts Attached 21 | 6 11 4 Power 2 | 1 1 . Engine 1 | 1 . . Core 1 | . 1 . Reactor . | . . . Propulsion 6 | 2 3 1 Treads 5 | 2 3 . Leg 1 | . . 1 Wheel . | . . . Hover . | . . . Flight . | . . . Utility 3 | 1 2 . Device 2 | . 2 . Storage 1 | 1 . . Processor . | . . . Hackware . | . . . Protection . | . . . Artifact . | . . . Weapon 10 | 2 5 3 Energy Gun 1 | 1 . . Energy Cannon . | . . . Ballistic Gun 7 | 1 4 2 Ballistic Cannon 1 | . . 1 Launcher 1 | . 1 . Special Weapon . | . . . Impact Weapon . | . . . Slashing Weapon . | . . . Piercing Weapon . | . . . Special Melee Weapon . | . . . Unidentified Prototypes . | . . . Parts Lost 2 | . . 2 Power 1 | . . 1 Propulsion . | . . . Utility . | . . . Weapon 1 | . . 1 Highest Loss Streak 2 | . . 2 To Critical Strikes . | . . . Average Slot Usage (%) 85 | . 97 72 Engine 4 | . 8 . Core 8 | . 5 11 Treads 17 | . 28 5 Leg 4 | . . 8 Device 11 | . 11 11 Storage 12 | . 14 11 Energy Gun 1 | . 2 . Ballistic Gun 19 | . 25 12 Ballistic Cannon 5 | . . 10 Naked Turns . | . . . Heaviest Build 18 | 12 14 18 Greatest Support 55 | 40 40 55 Greatest Overweight (x) 3 | 3 . . Average Overweight (x) . | . . . Largest Inventory Capacity 8 | 8 8 8 Average Capacity 7 | 7 8 8 Most Carried 8 | 4 8 8 Average Carried 7 | 3 7 7 Final Capacity 8 | 8 8 8 Final Carried 8 | 4 8 7 Class Distribution -------------------- 100% | Mutant Dominant Class ---------------- Mutant | -10/Materials Mutant | -10/Subcaves Resources | -11 -10 -10 ----------- Run | Yrd Mat Sub Matter Collected 763 | 232 232 299 Remotely . | . . . Salvage Created 546 | . 441 105 Parts 45 | . 37 8 Haulers Intercepted 1 | . 1 . Recyclers Shooed . | . . . Parts Field Recycled . | . . . Retrieved Matter . | . . . Parts Self-Destructed 7 | . . 7 Prevented . | . . . Kills | -11 -10 -10 ------- Run | Yrd Mat Sub Combat Hostiles Destroyed 17 | . 13 4 Guns 14 | . 13 1 Cannons 3 | . . 3 Classes Destroyed 5 | . 4 1 Hauler 1 | . 1 . Operator 1 | . 1 . Swarmer 6 | . 6 . Grunt 7 | . 7 . Subdweller 4 | . . 4 Best Kill Streak 7 | . 7 1 Combat Bots Only 7 | . 7 1 Max Kills in Single Turn 1 | . 1 1 Gunslinging . | . . . Exploded . | . . . Melee . | . . . Uniques/NPCs Destroyed . | . . . Combat | -11 -10 -10 -------- Run | Yrd Mat Sub Hostile Shots Fired 87 | . 62 25 Missed 23 | . 17 6 Damage Taken 945 | . 491 454 Core 259 | . 87 172 Absorbed by Shields . | . . . Core Remaining (%) 100 | 100 . . Volleys Fired 100 | . 57 43 Largest 2 | . 2 2 Hottest 69 | . 60 69 Shots Fired 174 | . 113 61 Gun 138 | . 112 26 Cannon 35 | . . 35 Launcher 1 | . 1 . Special . | . . . Kinetic 171 | . 110 61 Thermal . | . . . Explosive 1 | . 1 . Electromagnetic 2 | . 2 . Robot Hit Streak 14 | . 14 14 Robot Miss Streak 3 | . 3 1 Penetration Max . | . . . Secondary Targets 1 | . 1 . Max Gunslinging Chain 1 | . 1 . Shots Hit Robots 115 | . 83 32 Core Hits 40 | . 30 10 Critical Kills . | . . . Critical Parts Destroyed 2 | . 2 . Critical Strikes 2 | . 2 . Destroy 2 | . 2 . Melee Attacks . | . . . Impact . | . . . Slashing . | . . . Piercing . | . . . Sneak Attacks . | . . . Combat Hostiles . | . . . Follow-up Attacks . | . . . Damage Inflicted 1318 | . 788 530 Guns 1010 | . 788 222 Cannons 308 | . . 308 Explosions . | . . . Melee . | . . . Ramming . | . . . Kinetic 1306 | . 776 530 Thermal . | . . . Explosive . | . . . Electromagnetic 12 | . 12 . Impact . | . . . Slashing . | . . . Piercing . | . . . Highest Corruption . | . . . Average Corruption . | . . . Corruption Purged . | . . . Corruption Blocked . | . . . Overload Shots . | . . . Overflow Damage . | . . . Projectiles . | . . . Explosions . | . . . Melee . | . . . Knockbacks 2 | . . 2 Impact . | . . . Kinetic 2 | . . 2 Secondary . | . . . Self-Inflicted Damage 2 | . 2 . Shots 1 | . 1 . Rammed . | . . . Targets Rammed . | . . . Kicked . | . . . Crushed . | . . . Highest Temperature 20 | . 20 . Average Temperature 6 | . 6 . Received Heat Transfer 357 | . 213 144 Siege Activations . | . . . Robots Corrupted . | . . . Combat Hostiles . | . . . Parts Fried . | . . . Impact Corruptions . | . . . Robots Melted . | . . . Combat Hostiles . | . . . Parts Melted . | . . . Heat Transferred . | . . . Parts Sabotaged . | . . . Parts Stolen . | . . . Parts Stripped . | . . . Power Chain Reactions . | . . . Alert | -11 -10 -10 ------- Run | Yrd Mat Sub Peak Influence 307 | . 307 . Initial . | . . . Average 106 | . 114 . Maximum Alert Level 1 | . 1 . Low Security (%) 85 | 100 84 . Level 1 14 | . 15 . Level 2 . | . . . Level 3 . | . . . Level 4 . | . . . Level 5 . | . . . High Security . | . . . Max Security . | . . . Squads Dispatched 3 | . 3 . Investigation 1 | . 1 . Extermination . | . . . Reinforcement 2 | . 2 . Assault . | . . . Garrison . | . . . Intercept . | . . . Searches Triggered . | . . . Construction Impeded . | . . . Haulers Reinforced . | . . . Active Scanning Responses . | . . . Cargo Convoy Interrupts . | . . . Stealth | -11 -10 -10 --------- Run | Yrd Mat Sub Distress Signals 2 | . 2 . Communications Jammed . | . . . Distress Signals . | . . . Times Spotted 27 | . 22 5 Peak Tracking Total 7 | . 7 2 Tactical Retreats . | . . . Traps | -11 -10 -10 ------- Run | Yrd Mat Sub Traps Triggered 2 | . 2 . Indirectly . | . . . Trap Hack Attempts . | . . . Triggered . | . . . Disarmed . | . . . Reprogrammed . | . . . Reused . | . . . Traps Extracted . | . . . Installed . | . . . Triggered . | . . . Machines | -11 -10 -10 ---------- Run | Yrd Mat Sub Machines Disabled 1 | . . 1 Max in Single Turn 1 | . . 1 Machines Repaired . | . . . Machines Dismantled . | . . . Machines Sabotaged . | . . . Overloaded Fab Kills . | . . . Hacking | -11 -10 -10 --------- Run | Yrd Mat Sub Machines Accessed 3 | . 2 1 Terminals 2 | . 2 . Fabricators . | . . . Repair Stations . | . . . Recycling Units . | . . . Scanalyzers . | . . . Garrison Access . | . . . Total Hacks 6 | . 5 1 Successful 3 | . 2 1 Failed 3 | . 3 . Catastrophic . | . . . Database Lockouts . | . . . Manual . | . . . Terminals 5 | . 5 . Fabricators . | . . . Repair Stations . | . . . Recycling Units . | . . . Scanalyzers . | . . . Garrison Access . | . . . Terminal Hacks 3 | . 2 1 Prototype ID Bank 1 | . 1 . Zone Layout 1 | . 1 . Derelict Proto ID Bank 1 | . . 1 Fabricator Hacks . | . . . Repair Station Hacks . | . . . Recycling Unit Hacks . | . . . Scanalyzer . | . . . Garrison Access Hacks . | . . . Unauthorized Hacks . | . . . Terminals . | . . . Fabricators . | . . . Repair Stations . | . . . Recycling Units . | . . . Scanalyzers . | . . . Garrison Access . | . . . Data Cores Recovered . | . . . Used . | . . . Hacking Detections 2 | . 2 . Full Trace Events . | . . . Feedback Events . | . . . Feedback Blocked . | . . . Robot Schematics Acquired . | . . . Robots Built . | . . . Authchips . | . . . Time . | . . . Total Robot Build Rating . | . . . Part Schematics Acquired . | . . . Parts Built . | . . . Authchips . | . . . Time . | . . . Total Part Build Rating . | . . . Parts Repaired . | . . . Time . | . . . Parts Recycled . | . . . Recycled Matter . | . . . Retrieved Matter . | . . . Retrieved Components . | . . . Parts Scanalyzed . | . . . Part Schematics Acquired . | . . . Parts Damaged . | . . . Bothacking | -11 -10 -10 ------------ Run | Yrd Mat Sub Used RIF Installer . | . . . Robots Hacked . | . . . Non-combat . | . . . Combat . | . . . Robot Hacks Applied . | . . . Relay Couplers Released . | . . . Fabnet Peak Effective % . | . . . Robots Rewired . | . . . Allies Hacked . | . . . Hacks Repelled . | . . . Allies | -11 -10 -10 -------- Run | Yrd Mat Sub Total Allies . | . . . Largest Group . | . . . Highest-Rated Group . | . . . Highest-Rated Ally . | . . . Total Orders . | . . . Ally Attacks . | . . . Total Damage . | . . . Kills . | . . . Allies Corrupted . | . . . Allies Melted . | . . . Intel | -11 -10 -10 ------- Run | Yrd Mat Sub Robot Analysis Total . | . . . Derelict Logs Recovered . | . . . Drone Launches . | . . . Drone Recoveries . | . . . Exploration | -11 -10 -10 ------------- Run | Yrd Mat Sub Turns Passed 2189 | 86 1105 998 Spaces Moved 1143 | 47 452 644 Core 13 | 13 . . Treads 603 | 34 452 117 Legs 527 | . . 527 Wheels . | . . . Hover . | . . . Flight . | . . . Fastest Speed 50 | 50 160 130 Average Speed 146 | 158 160 135 Slowest Speed 200 | 200 160 160 Overloaded Moves . | . . . Propulsion Burnouts . | . . . Robots Hopped . | . . . Cave-ins Triggered . | . . . Exploration Rate (%) 38 | 4 69 41 Regions Visited 2 Branch Regions 1 Pre-discovered Areas . | . . . Known Exits Taken . | . . . Unknown Exits Taken 2 | 1 1 . Scrap Searched 3 | . . 3 Spaces Dug 9 | . 8 1 Terrain Destroyed 9 | . 8 1 Melee . | . . . Projectile 1 | . . 1 AOE 8 | . 8 . Terrain Rammed . | . . . Walls Destroyed . | . . . Machines Disabled . | . . . Actions | -11 -10 -10 --------- Run | Yrd Mat Sub Total 1508 | 56 737 715 Wait 214 | . 199 15 Move 1141 | 46 451 644 Hop . | . . . Pick Up 14 | 4 8 2 Fast Attach 13 | 6 4 3 Attach 2 | . 1 1 Detach 1 | . 1 . Swap 6 | . 6 . Drop 17 | . 10 7 Fire 100 | . 57 43 Melee . | . . . Ram . | . . . Kick . | . . . Crush . | . . . Escape Stasis . | . . . Rewire . | . . . Trap . | . . . Miscellaneous . | . . . Route ------- -11/Scrapyard -10/Materials (discovered 4 exits: [*Mat x2] / [*Min] / *Sub) -10/Subcaves (discovered 1 exit: [*Mat]) History --------- Turn | Location | Event 24 | -11/Scrapyard | Discovered new exit (range 16) 87 | -11/Scrapyard | Entered Materials 305 | -10/Materials | Build established: Mutant 439 | -10/Materials | Discovered new exit (range 7) 676 | -10/Materials | Discovered new exit (range 6) 764 | -10/Materials | Destroyed 7 combat bots 942 | -10/Materials | Discovered new exit (range 5) 1176 | -10/Materials | Discovered new exit (range 11) 1192 | -10/Materials | Entered Subcaves 1222 | -10/Subcaves | Shifting Twisted Machinery released Sub. Beam Cannon 1239 | -10/Subcaves | Shifting Twisted Machinery released Sub. Machine Gun 1385 | -10/Subcaves | Visited 4L-MR0's lab 1405 | -10/Subcaves | Found Cargo Legs 1406 | -10/Subcaves | Attached Cargo Legs, gained temporary slots: Utility x2 1710 | -10/Subcaves | Discovered new exit (range 5) 2168 | -10/Subcaves | Core integrity fell below 50% 2181 | -10/Subcaves | Core integrity fell below 20% 2190 | -10/Subcaves | Destroyed by 91-VDV(R) with Subdweller Beam Cannon Last Messages --------------- 01772_ Acquired 28 matter. 01773_ Acquired 1 matter. 01799_ Sub. Machine Gun shoots sparks and powers down. 01802_ Dropped Broken Sub. Machine Gun. 01850_ Acquired 8 matter. 01851_ Acquired 11 matter. 01858_ Acquired 13 matter. 01867_ Acquired 14 matter. 01914_ Acquired 12 matter. 01919_ Acquired 7 matter. 01927_ Acquired 8 matter. 01931_ Acquired 14 matter. 02079_ Acquired 11 matter. 02081_ Acquired 5 matter. 02087_ Acquired 6 matter. 02168_ UI-KEJ(R) knocked back. 02171_ UI-KEJ(R) destroyed. 02174_ Lgt. Nuclear Core destroyed. 02176_ Battle Cannon destroyed. Map ----- +----------------------------------------------------+ | ?????????????????????????????????????????????????? | | ?????????????????????????????????????????????????? | | ?????????????????????????????????????????????????? | | ?????????????????????????????????????????????????? | | ?????????????????????????????????????????????????? | | ?????????????????????????????????????????????????? | | ?????????????????????????????????????????????????? | | ?????????????????????????????????????????????????? | | ?????????????????????????????????????????????????? | | ?????????????????????????????????????????????????? | | ???????????????????????????????????#?????????##### | | ?????????????????????????????????# ?????### | | ????????????????????????????????# ??#??## | | ????????????????????????????????# ???## | | ?????????????????????#?#?????????# ??## ## | | ??????????????????????????????????# #?## ### | | ??????????????????????????#???#???# ## ## | | ??????????????????????????????????# ### | | ??????????????????????????????????## ### | | ???????????????????????????????????##### | | ????????????????????#????????????#?????# | | ???????????????????#?###?###?????????### ## | | ????????????????????## %## #######????# ### | | ?????????????????#### % ## ##???# #?## | | ??????????????????# R ###?# #??# | | ??????????????????# #@# ### #??# | | ????????????????# ??#### #?## | | ???????????????# ???????# ### | | ????????????? ?????????## ##### ### | | ???????????? ????????????# #???# #?# | | ???????????? ???????????#??# #??## ### | | ????????????????????????????# ### ## | | ????????????????????????????# ## | | ????????????????????????#???## ### ## | | ?????????????????????????????# #?######### ##### | | ??????????????????????????#??####?????????####???? | | ?????????????????????????#?????????????#?????????? | | ???????????????????#???#?????????#???????????????? | | ???????????????????????????#?????????????????????? | | ??????????????????????????????????????????#??????? | | ???????????????????????????????#?????????????????? | | ?????????????????????????????????????????????????? | | ?????????????????????????????????????????????????? | | ?????????????????????????????????????????????????? | | ??????????????????????????????????????????#??????? | | ?????????????????????????????????????????????????? | | ?????????????????????????????????????????????????? | | ?????????????????????????????????????????????????? | | ?????????????????????????????????????????????????? | | ?????????????????????????????????????????????????? | +----------------------------------------------------+ Best States ------------- Heat Dissipation 25 Energy Generation 14 Energy Capacity 160 Matter Stores 300 Matter Capacity 300 Sight Range 16 Terrain Scan Range 14 Terrain Scan Density 10 Evasion (%) 55 Recoil Reduction 2 Item Schematics ----------------- None Robot Schematics ------------------ None Fabricated ------------ Nothing Alien Tech Used ----------------- None Achievements -------------- None Challenges ------------ None Game ------ Seed SensorSalvageSaw Manual? 0 Play Time 00:17:44 Cumulative 87.6 hours Start 2024.05.27 @ 11:19:53 End 2024.05.27 @ 12:43:56 Sessions 1 Manual Loads 0 Difficulty Rogue Special Mode None Game No. 145 Rogue 145 Adventurer 0 Explorer 0 Win Type - Total 1 Types 1/0/0/0/0/0/0/0/0 Lore% 40 Gallery% 44 Achievement% 32 Wizard Run 0 Options --------- Layout 1 ASCII 0 Keyboard 1 Movement Numpad Keybinds 0 Fullscreen 1 Font 24/Smallcaps Map View 50x35 Zoom Use 0% Tactical HUD 1 Map Filters NONE Filters NONE Steam 1 RUN: 75438a49-aed4-41b4-89ff-295af04f862a